[Event "Titled Tuesday Blitz June 13 Early 2023"]
[White "Keymer, Vincent"]
[Black "Matinian, Nikita"]
[WhiteFideId "12940690"]
[BlackFideId "24129100"]
[WhiteElo "2669"]
[BlackElo "2422"]
[Result "1-0"]
[Round "5"]
[TimeControl "180+2"]
[Date "2023.06.13"]
[WhiteClock "0:00:05"]
[BlackClock "0:00:00"]
[Board "17"]

1. a3 {[%clk 0:02:53]}  d6 {[%clk 0:03:00]} 2. Nf3 {[%clk 0:02:51]}  g6 {[%clk 0:03:00]} 3. d4 {[%clk 0:02:49]}  Bg7 {[%clk 0:03:01]} 4. e4 {[%clk 0:02:49]}  Nf6 {[%clk 0:02:59]} 5. Nc3 {[%clk 0:02:48]}  O-O {[%clk 0:02:57]} 6. Bc4 {[%clk 0:02:44]}  Bg4 {[%clk 0:02:53]} 7. Be2 {[%clk 0:02:40]}  Bxf3 {[%clk 0:02:28]} 8. Bxf3 {[%clk 0:02:40]}  e5 {[%clk 0:02:29]} 9. d5 {[%clk 0:02:30]}  Nbd7 {[%clk 0:02:27]} 10. h4 {[%clk 0:02:26]}  h5 {[%clk 0:02:11]} 11. Be3 {[%clk 0:02:07]}  a6 {[%clk 0:02:03]} 12. a4 {[%clk 0:01:43]}  a5 {[%clk 0:01:56]} 13. Qe2 {[%clk 0:01:40]}  Nc5 {[%clk 0:01:54]} 14. Bxc5 {[%clk 0:01:26]}  dxc5 {[%clk 0:01:55]} 15. g4 {[%clk 0:01:27]}  hxg4 {[%clk 0:01:48]} 16. Bxg4 {[%clk 0:01:28]}  Bh6 {[%clk 0:01:25]} 17. h5 {[%clk 0:01:27]}  Kg7 {[%clk 0:01:21]} 18. hxg6 {[%clk 0:00:57]}  fxg6 {[%clk 0:01:22]} 19. Be6 {[%clk 0:00:57]}  Nh5 {[%clk 0:01:17]} 20. Rxh5 {[%clk 0:00:46]}  gxh5 {[%clk 0:01:18]} 21. Qxh5 {[%clk 0:00:47]}  Qg5 {[%clk 0:00:52]} 22. Qxg5+ {[%clk 0:00:46]}  Bxg5 {[%clk 0:00:53]} 23. Ke2 {[%clk 0:00:47]}  Rf4 {[%clk 0:00:35]} 24. Rg1 {[%clk 0:00:23]}  Kf6 {[%clk 0:00:35]} 25. Bf5 {[%clk 0:00:24]}  Rh8 {[%clk 0:00:33]} 26. Rg2 {[%clk 0:00:22]}  Rh1 {[%clk 0:00:19]} 27. Nd1 {[%clk 0:00:20]}  Rfh4 {[%clk 0:00:13]} 28. b3 {[%clk 0:00:19]}  R4h2 {[%clk 0:00:11]} 29. Rxh2 {[%clk 0:00:19]}  Rxh2 {[%clk 0:00:11]} 30. Nb2 {[%clk 0:00:20]}  Bh4 {[%clk 0:00:11]} 31. Nd3 {[%clk 0:00:20]}  b6 {[%clk 0:00:11]} 32. Kf3 {[%clk 0:00:20]}  Bg5 {[%clk 0:00:10]} 33. Ke2 {[%clk 0:00:20]}  Rh1 {[%clk 0:00:10]} 34. Bd7 {[%clk 0:00:17]}  Bh4 {[%clk 0:00:09]} 35. Bb5 {[%clk 0:00:16]}  Rh2 {[%clk 0:00:08]} 36. Bc4 {[%clk 0:00:16]}  Bg5 {[%clk 0:00:08]} 37. Kf1 {[%clk 0:00:16]}  Rh1+ {[%clk 0:00:08]} 38. Ke2 {[%clk 0:00:16]}  Bf4 {[%clk 0:00:05]} 39. Kf3 {[%clk 0:00:15]}  Rh3+ {[%clk 0:00:05]} 40. Kg4 {[%clk 0:00:15]}  Rh2 {[%clk 0:00:05]} 41. Kf3 {[%clk 0:00:15]}  Rh3+ {[%clk 0:00:05]} 42. Ke2 {[%clk 0:00:15]}  Rh2 {[%clk 0:00:05]} 43. Ba6 {[%clk 0:00:13]}  Rh1 {[%clk 0:00:05]} 44. Ne1 {[%clk 0:00:12]}  Rh2 {[%clk 0:00:04]} 45. Nf3 {[%clk 0:00:12]}  Rh1 {[%clk 0:00:05]} 46. Bd3 {[%clk 0:00:13]}  Rc1 {[%clk 0:00:04]} 47. Ne1 {[%clk 0:00:13]}  Ra1 {[%clk 0:00:04]} 48. Ng2 {[%clk 0:00:13]}  Kg5 {[%clk 0:00:04]} 49. Ne1 {[%clk 0:00:13]}  Rb1 {[%clk 0:00:04]} 50. Nf3+ {[%clk 0:00:13]}  Kf6 {[%clk 0:00:04]} 51. Ne1 {[%clk 0:00:12]}  Ra1 {[%clk 0:00:04]} 52. Ng2 {[%clk 0:00:06]}  Kg5 {[%clk 0:00:04]} 53. Ne1 {[%clk 0:00:05]}  Bc1 {[%clk 0:00:04]} 54. Nf3+ {[%clk 0:00:05]}  Kf6 {[%clk 0:00:05]} 55. Nh4 {[%clk 0:00:05]}  Bb2 {[%clk 0:00:04]} 56. Nf5 {[%clk 0:00:06]}  Bc3 {[%clk 0:00:04]} 57. d6 {[%clk 0:00:06]}  cxd6 {[%clk 0:00:05]} 58. Nxd6 {[%clk 0:00:07]}  Re1+ {[%clk 0:00:05]} 59. Kf3 {[%clk 0:00:08]}  Bd4 {[%clk 0:00:04]} 60. Nc4 {[%clk 0:00:08]}  Rh1 {[%clk 0:00:04]} 61. Kg2 {[%clk 0:00:08]}  Rd1 {[%clk 0:00:03]} 62. Nxb6 {[%clk 0:00:06]}  Rd2 {[%clk 0:00:04]} 63. Nc4 {[%clk 0:00:06]}  Rxf2+ {[%clk 0:00:04]} 64. Kg3 {[%clk 0:00:07]}  Ke7 {[%clk 0:00:03]} 65. Nxa5 {[%clk 0:00:07]}  Rd2 {[%clk 0:00:03]} 66. Nc4 {[%clk 0:00:08]}  Rd1 {[%clk 0:00:03]} 67. Kf3 {[%clk 0:00:06]}  Ra1 {[%clk 0:00:03]} 68. Ke2 {[%clk 0:00:07]}  Kf6 {[%clk 0:00:03]} 69. Kd2 {[%clk 0:00:07]}  Bg1 {[%clk 0:00:03]} 70. c3 {[%clk 0:00:06]}  Ra2+ {[%clk 0:00:04]} 71. Kc1 {[%clk 0:00:06]}  Rh2 {[%clk 0:00:03]} 72. Bc2 {[%clk 0:00:05]}  Rh7 {[%clk 0:00:02]} 73. a5 {[%clk 0:00:06]}  Bh2 {[%clk 0:00:01]} 74. Kb2 {[%clk 0:00:06]}  Bf4 {[%clk 0:00:02]} 75. Ka3 {[%clk 0:00:07]}  Ke7 {[%clk 0:00:01]} 76. Ka4 {[%clk 0:00:07]}  Kd7 {[%clk 0:00:02]} 77. Kb5 {[%clk 0:00:07]}  Kc8 {[%clk 0:00:02]} 78. Kxc5 {[%clk 0:00:07]}  Rc7+ {[%clk 0:00:03]} 79. Kd5 {[%clk 0:00:07]}  Kb7 {[%clk 0:00:03]} 80. b4 {[%clk 0:00:06]}  Ka6 {[%clk 0:00:03]} 81. Ba4 {[%clk 0:00:06]}  Rc8 {[%clk 0:00:03]} 82. Bd7 {[%clk 0:00:06]}  Rd8 {[%clk 0:00:03]} 83. Nb6 {[%clk 0:00:05]}  Bd2 {[%clk 0:00:03]} 84. Kc4 {[%clk 0:00:02]}  Be3 {[%clk 0:00:03]} 85. Bb5+ {[%clk 0:00:01]}  Kb7 {[%clk 0:00:03]} 86. Nd5 {[%clk 0:00:02]}  Rc8+ {[%clk 0:00:03]} 87. Kb3 {[%clk 0:00:03]}  Bd2 {[%clk 0:00:04]} 88. c4 {[%clk 0:00:04]}  Rg8 {[%clk 0:00:04]} 89. c5 {[%clk 0:00:04]}  Rg1 {[%clk 0:00:05]} 90. a6+ {[%clk 0:00:04]}  Ka7 {[%clk 0:00:05]} 91. Bd3 {[%clk 0:00:05]}  Rc1 {[%clk 0:00:04]} 92. b5 {[%clk 0:00:04]}  Rxc5 {[%clk 0:00:04]} 93. b6+ {[%clk 0:00:05]}  Ka8 {[%clk 0:00:04]} 94. Ka4 {[%clk 0:00:06]}  Rc1 {[%clk 0:00:02]} 95. Bb5 {[%clk 0:00:06]}  Ra1+ {[%clk 0:00:02]} 96. Kb3 {[%clk 0:00:06]}  Rb1+ {[%clk 0:00:02]} 97. Kc4 {[%clk 0:00:07]}  Rc1+ {[%clk 0:00:02]} 98. Kd3 {[%clk 0:00:07]}  Ba5 {[%clk 0:00:02]} 99. Bd7 {[%clk 0:00:04]}  Rd1+ {[%clk 0:00:01]} 100. Kc4 {[%clk 0:00:04]}  Rb1 {[%clk 0:00:01]} 101. Bc6+ {[%clk 0:00:04]}  Kb8 {[%clk 0:00:00]} 102. a7+ {[%clk 0:00:05]} 1-0


[Site "https://www.chess.com"]

[Event "Titled Tuesday Blitz June 13 Early 2023"]
[White "Arabidze, Meri"]
[Black "Terry, Renato"]
[WhiteFideId "13604040"]
[BlackFideId "3803457"]
[WhiteElo "2405"]
[BlackElo "2575"]
[Result "0-1"]
[Round "5"]
[TimeControl "180+2"]
[Date "2023.06.13"]
[WhiteClock "0:00:06"]
[BlackClock "0:00:03"]
[Board "18"]

1. d4 {[%clk 0:03:00]}  e6 {[%clk 0:02:58]} 2. c4 {[%clk 0:03:01]}  Bb4+ {[%clk 0:02:57]} 3. Bd2 {[%clk 0:03:01]}  Qe7 {[%clk 0:02:57]} 4. Nf3 {[%clk 0:03:00]}  Nf6 {[%clk 0:02:57]} 5. g3 {[%clk 0:02:59]}  Nc6 {[%clk 0:02:57]} 6. Nc3 {[%clk 0:02:58]}  O-O {[%clk 0:02:57]} 7. Bg2 {[%clk 0:02:58]}  d6 {[%clk 0:02:54]} 8. O-O {[%clk 0:02:57]}  Bxc3 {[%clk 0:02:53]} 9. Bxc3 {[%clk 0:02:58]}  Ne4 {[%clk 0:02:54]} 10. Rc1 {[%clk 0:02:59]}  Nxc3 {[%clk 0:02:44]} 11. Rxc3 {[%clk 0:03:00]}  e5 {[%clk 0:02:45]} 12. d5 {[%clk 0:02:47]}  Nb8 {[%clk 0:02:45]} 13. b4 {[%clk 0:02:39]}  Bg4 {[%clk 0:02:27]} 14. c5 {[%clk 0:02:37]}  a5 {[%clk 0:02:21]} 15. a3 {[%clk 0:02:36]}  axb4 {[%clk 0:02:19]} 16. axb4 {[%clk 0:02:37]}  Na6 {[%clk 0:02:12]} 17. cxd6 {[%clk 0:02:24]}  Qxd6 {[%clk 0:01:51]} 18. Nd2 {[%clk 0:02:06]}  Bd7 {[%clk 0:01:35]} 19. Qc1 {[%clk 0:01:49]}  Rfe8 {[%clk 0:01:19]} 20. Qb2 {[%clk 0:01:26]}  Bb5 {[%clk 0:01:03]} 21. Ne4 {[%clk 0:01:22]}  Qb6 {[%clk 0:00:57]} 22. Nc5 {[%clk 0:01:22]}  Rad8 {[%clk 0:00:51]} 23. Rfc1 {[%clk 0:01:18]}  Re7 {[%clk 0:00:51]} 24. h4 {[%clk 0:01:15]}  h6 {[%clk 0:00:48]} 25. e3 {[%clk 0:01:14]}  Nb8 {[%clk 0:00:39]} 26. Nxb7 {[%clk 0:01:09]}  Rde8 {[%clk 0:00:33]} 27. Na5 {[%clk 0:01:08]}  e4 {[%clk 0:00:33]} 28. Bf1 {[%clk 0:01:00]}  Bxf1 {[%clk 0:00:31]} 29. Rxf1 {[%clk 0:01:01]}  g5 {[%clk 0:00:25]} 30. hxg5 {[%clk 0:00:58]}  hxg5 {[%clk 0:00:26]} 31. Nc6 {[%clk 0:00:58]}  Rd7 {[%clk 0:00:25]} 32. Rfc1 {[%clk 0:00:40]}  Rxd5 {[%clk 0:00:23]} 33. Nxb8 {[%clk 0:00:39]}  Rxb8 {[%clk 0:00:20]} 34. Rxc7 {[%clk 0:00:39]}  Rbd8 {[%clk 0:00:20]} 35. Rc8 {[%clk 0:00:37]}  Kh7 {[%clk 0:00:15]} 36. R1c7 {[%clk 0:00:36]}  Qe6 {[%clk 0:00:08]} 37. Rxd8 {[%clk 0:00:34]}  Rxd8 {[%clk 0:00:09]} 38. Qc2 {[%clk 0:00:26]}  Qf5 {[%clk 0:00:09]} 39. Rc5 {[%clk 0:00:22]}  Qf3 {[%clk 0:00:08]} 40. Rxg5 {[%clk 0:00:17]}  Rd1+ {[%clk 0:00:08]} 41. Qxd1 {[%clk 0:00:17]}  Qxd1+ {[%clk 0:00:09]} 42. Kg2 {[%clk 0:00:17]}  Qf3+ {[%clk 0:00:09]} 43. Kg1 {[%clk 0:00:18]}  f6 {[%clk 0:00:10]} 44. Rd5 {[%clk 0:00:16]}  Qe2 {[%clk 0:00:10]} 45. Rf5 {[%clk 0:00:16]}  Kg6 {[%clk 0:00:09]} 46. Rf4 {[%clk 0:00:16]}  f5 {[%clk 0:00:09]} 47. Rh4 {[%clk 0:00:16]}  Kg5 {[%clk 0:00:10]} 48. Rf4 {[%clk 0:00:16]}  Qe1+ {[%clk 0:00:10]} 49. Kg2 {[%clk 0:00:16]}  Qxb4 {[%clk 0:00:11]} 50. Rh4 {[%clk 0:00:16]}  Qb1 {[%clk 0:00:11]} 51. Rf4 {[%clk 0:00:16]}  Qd1 {[%clk 0:00:11]} 52. Rh4 {[%clk 0:00:17]}  Qd5 {[%clk 0:00:11]} 53. Rf4 {[%clk 0:00:16]}  Kg6 {[%clk 0:00:12]} 54. Rh4 {[%clk 0:00:16]}  Kf6 {[%clk 0:00:12]} 55. Rf4 {[%clk 0:00:17]}  Ke6 {[%clk 0:00:12]} 56. g4 {[%clk 0:00:16]}  fxg4 {[%clk 0:00:11]} 57. Rxg4 {[%clk 0:00:17]}  Qf5 {[%clk 0:00:11]} 58. Rf4 {[%clk 0:00:17]}  Qg6+ {[%clk 0:00:12]} 59. Kf1 {[%clk 0:00:17]}  Kd5 {[%clk 0:00:12]} 60. Ke2 {[%clk 0:00:13]}  Kc4 {[%clk 0:00:11]} 61. Rf8 {[%clk 0:00:10]}  Qg4+ {[%clk 0:00:09]} 62. Kf1 {[%clk 0:00:09]}  Kc3 {[%clk 0:00:09]} 63. Rd8 {[%clk 0:00:07]}  Qh3+ {[%clk 0:00:08]} 64. Ke2 {[%clk 0:00:06]}  Qh5+ {[%clk 0:00:09]} 65. Kf1 {[%clk 0:00:06]}  Qh1+ {[%clk 0:00:08]} 66. Ke2 {[%clk 0:00:06]}  Qf3+ {[%clk 0:00:08]} 67. Ke1 {[%clk 0:00:06]}  Kc2 {[%clk 0:00:05]} 68. Rd4 {[%clk 0:00:05]}  Qg4 {[%clk 0:00:05]} 69. Rc4+ {[%clk 0:00:04]}  Kd3 {[%clk 0:00:06]} 70. Rd4+ {[%clk 0:00:05]}  Kc3 {[%clk 0:00:06]} 71. Kf1 {[%clk 0:00:04]}  Qg6 {[%clk 0:00:07]} 72. Ke2 {[%clk 0:00:04]}  Qg2 {[%clk 0:00:07]} 73. Ke1 {[%clk 0:00:04]}  Kc2 {[%clk 0:00:07]} 74. Rc4+ {[%clk 0:00:04]}  Kd3 {[%clk 0:00:07]} 75. Rd4+ {[%clk 0:00:05]}  Kc3 {[%clk 0:00:08]} 76. Ke2 {[%clk 0:00:05]}  Qh1 {[%clk 0:00:07]} 77. Rd8 {[%clk 0:00:04]}  Qh3 {[%clk 0:00:03]} 78. Rd4 {[%clk 0:00:04]}  Kc2 {[%clk 0:00:02]} 79. Rc4+ {[%clk 0:00:04]}  Kb3 {[%clk 0:00:03]} 80. Rxe4 {[%clk 0:00:04]}  Qh5+ {[%clk 0:00:03]} 81. f3 {[%clk 0:00:04]}  Qh2+ {[%clk 0:00:00]} 82. Kd3 {[%clk 0:00:04]}  Qc2+ {[%clk 0:00:01]} 83. Kd4 {[%clk 0:00:05]}  Qc7 {[%clk 0:00:01]} 84. Re5 {[%clk 0:00:05]}  Qd6+ {[%clk 0:00:02]} 85. Ke4 {[%clk 0:00:05]}  Qg6+ {[%clk 0:00:02]} 86. Kf4 {[%clk 0:00:05]}  Qf6+ {[%clk 0:00:02]} 87. Rf5 {[%clk 0:00:05]}  Qh4+ {[%clk 0:00:02]} 88. Ke5 {[%clk 0:00:05]}  Kc4 {[%clk 0:00:03]} 89. f4 {[%clk 0:00:06]}  Qe7# {[%clk 0:00:03]} 0-1


[Site "https://www.chess.com"]

[Event "Titled Tuesday Blitz June 13 Early 2023"]
[White "Sarana, Alexey"]
[Black "Maatman, Nick"]
[WhiteFideId "24133795"]
[BlackFideId "1040391"]
[WhiteElo "2714"]
[BlackElo "2713"]
[Result "1-0"]
[Round "5"]
[TimeControl "180+2"]
[Date "2023.06.13"]
[WhiteClock "0:00:49"]
[BlackClock "0:00:05"]
[Board "20"]

1. c4 {[%clk 0:03:00]}  e6 {[%clk 0:02:54]} 2. Nc3 {[%clk 0:02:59]}  d5 {[%clk 0:02:55]} 3. d4 {[%clk 0:02:58]}  Nf6 {[%clk 0:02:49]} 4. cxd5 {[%clk 0:02:57]}  exd5 {[%clk 0:02:50]} 5. Bf4 {[%clk 0:02:57]}  c6 {[%clk 0:02:46]} 6. e3 {[%clk 0:02:57]}  Bd6 {[%clk 0:02:43]} 7. Bxd6 {[%clk 0:02:57]}  Qxd6 {[%clk 0:02:44]} 8. Bd3 {[%clk 0:02:57]}  O-O {[%clk 0:02:44]} 9. h3 {[%clk 0:02:58]}  a5 {[%clk 0:02:42]} 10. Nf3 {[%clk 0:02:58]}  Re8 {[%clk 0:02:40]} 11. O-O {[%clk 0:02:40]}  Nbd7 {[%clk 0:02:36]} 12. Qc2 {[%clk 0:02:39]}  Nf8 {[%clk 0:02:31]} 13. Ne5 {[%clk 0:02:39]}  b5 {[%clk 0:02:16]} 14. f4 {[%clk 0:02:33]}  Ba6 {[%clk 0:02:12]} 15. Rac1 {[%clk 0:02:30]}  b4 {[%clk 0:02:03]} 16. Na4 {[%clk 0:02:14]}  Bxd3 {[%clk 0:02:00]} 17. Qxd3 {[%clk 0:02:15]}  Rac8 {[%clk 0:01:38]} 18. Rc2 {[%clk 0:02:10]}  N6d7 {[%clk 0:01:28]} 19. Rfc1 {[%clk 0:02:07]}  Nb8 {[%clk 0:00:58]} 20. Rc5 {[%clk 0:01:41]}  f6 {[%clk 0:00:57]} 21. Nf3 {[%clk 0:01:40]}  Qd8 {[%clk 0:00:39]} 22. a3 {[%clk 0:01:31]}  Nfd7 {[%clk 0:00:37]} 23. R5c2 {[%clk 0:01:31]}  Nb6 {[%clk 0:00:35]} 24. Nxb6 {[%clk 0:01:26]}  Qxb6 {[%clk 0:00:36]} 25. Nh4 {[%clk 0:01:22]}  Re4 {[%clk 0:00:23]} 26. Nf5 {[%clk 0:01:19]}  Qc7 {[%clk 0:00:20]} 27. axb4 {[%clk 0:01:16]}  axb4 {[%clk 0:00:20]} 28. Qb3 {[%clk 0:01:09]}  Qd7 {[%clk 0:00:11]} 29. Ng3 {[%clk 0:01:09]}  Re7 {[%clk 0:00:11]} 30. Nf1 {[%clk 0:01:07]}  Rce8 {[%clk 0:00:10]} 31. Qxb4 {[%clk 0:01:07]}  h5 {[%clk 0:00:08]} 32. Rc3 {[%clk 0:01:06]}  h4 {[%clk 0:00:08]} 33. Rb3 {[%clk 0:01:06]}  Qf5 {[%clk 0:00:08]} 34. Qd6 {[%clk 0:01:02]}  Re6 {[%clk 0:00:08]} 35. Qc7 {[%clk 0:00:57]}  R6e7 {[%clk 0:00:08]} 36. Qb6 {[%clk 0:00:52]}  Re6 {[%clk 0:00:09]} 37. Qa7 {[%clk 0:00:51]}  R6e7 {[%clk 0:00:08]} 38. Qa8 {[%clk 0:00:50]}  Kh7 {[%clk 0:00:05]} 39. Rxb8 {[%clk 0:00:49]} 1-0


[Site "https://www.chess.com"]

[Event "Titled Tuesday Blitz June 13 Early 2023"]
[White "Duda, Jan-Krzysztof"]
[Black "benny_aizenberg"]
[WhiteFideId "1170546"]
[WhiteElo "2783"]
[BlackElo "2708"]
[Result "1-0"]
[Round "5"]
[TimeControl "180+2"]
[Date "2023.06.13"]
[WhiteClock "0:01:34"]
[BlackClock "0:00:01"]
[Board "21"]

1. c4 {[%clk 0:03:00]}  g6 {[%clk 0:02:54]} 2. Nc3 {[%clk 0:03:01]}  c5 {[%clk 0:02:52]} 3. g3 {[%clk 0:02:56]}  Bg7 {[%clk 0:02:52]} 4. Bg2 {[%clk 0:02:57]}  Nc6 {[%clk 0:02:52]} 5. d3 {[%clk 0:02:57]}  e6 {[%clk 0:02:47]} 6. e4 {[%clk 0:02:57]}  Nge7 {[%clk 0:02:46]} 7. Nge2 {[%clk 0:02:58]}  O-O {[%clk 0:02:47]} 8. Be3 {[%clk 0:02:58]}  d6 {[%clk 0:02:46]} 9. d4 {[%clk 0:02:57]}  cxd4 {[%clk 0:02:42]} 10. Nxd4 {[%clk 0:02:57]}  a6 {[%clk 0:02:35]} 11. O-O {[%clk 0:02:57]}  Qc7 {[%clk 0:02:34]} 12. Rc1 {[%clk 0:02:56]}  Bd7 {[%clk 0:02:24]} 13. Nd5 {[%clk 0:02:50]}  Qd8 {[%clk 0:02:21]} 14. Nxc6 {[%clk 0:02:44]}  Bxc6 {[%clk 0:02:21]} 15. Nb6 {[%clk 0:02:39]}  Rb8 {[%clk 0:02:16]} 16. b4 {[%clk 0:02:39]}  Nc8 {[%clk 0:02:04]} 17. Nxc8 {[%clk 0:02:35]}  Rxc8 {[%clk 0:02:04]} 18. a4 {[%clk 0:02:36]}  b5 {[%clk 0:01:54]} 19. cxb5 {[%clk 0:02:34]}  axb5 {[%clk 0:01:51]} 20. a5 {[%clk 0:02:35]}  Qd7 {[%clk 0:01:49]} 21. Qd3 {[%clk 0:02:32]}  Rfd8 {[%clk 0:01:42]} 22. Rfd1 {[%clk 0:02:30]}  Qb7 {[%clk 0:01:41]} 23. Bb6 {[%clk 0:02:27]}  Rd7 {[%clk 0:01:39]} 24. Rc2 {[%clk 0:02:22]}  f5 {[%clk 0:01:05]} 25. Rdc1 {[%clk 0:02:20]}  fxe4 {[%clk 0:01:05]} 26. Bxe4 {[%clk 0:02:21]}  d5 {[%clk 0:01:05]} 27. Bg2 {[%clk 0:02:15]}  Rf7 {[%clk 0:00:56]} 28. Bh3 {[%clk 0:02:12]}  Re7 {[%clk 0:00:23]} 29. Bd4 {[%clk 0:01:58]}  Bxd4 {[%clk 0:00:18]} 30. Qxd4 {[%clk 0:01:59]}  Bd7 {[%clk 0:00:12]} 31. Rxc8+ {[%clk 0:01:49]}  Bxc8 {[%clk 0:00:13]} 32. Qf6 {[%clk 0:01:49]}  Re8 {[%clk 0:00:10]} 33. a6 {[%clk 0:01:50]}  Qf7 {[%clk 0:00:08]} 34. Qxf7+ {[%clk 0:01:42]}  Kxf7 {[%clk 0:00:08]} 35. a7 {[%clk 0:01:41]}  Bd7 {[%clk 0:00:07]} 36. Rc7 {[%clk 0:01:33]}  Ke7 {[%clk 0:00:07]} 37. Bf1 {[%clk 0:01:33]}  Kd6 {[%clk 0:00:06]} 38. Rxd7+ {[%clk 0:01:33]}  Kxd7 {[%clk 0:00:01]} 39. Bxb5+ {[%clk 0:01:34]} 1-0


[Site "https://www.chess.com"]

[Event "Titled Tuesday Blitz June 13 Early 2023"]
[White "Maevsky, Nikolay"]
[Black "Sadhwani, Raunak"]
[WhiteFideId "4198220"]
[BlackFideId "35093487"]
[WhiteElo "2021"]
[BlackElo "2631"]
[Result "0-1"]
[Round "5"]
[TimeControl "180+2"]
[Date "2023.06.13"]
[WhiteClock "0:00:12"]
[BlackClock "0:00:25"]
[Board "22"]

1. d4 {[%clk 0:03:00]}  g6 {[%clk 0:03:00]} 2. c4 {[%clk 0:03:00]}  Bg7 {[%clk 0:03:01]} 3. Nc3 {[%clk 0:03:01]}  d6 {[%clk 0:02:59]} 4. e4 {[%clk 0:03:01]}  Nf6 {[%clk 0:02:57]} 5. Be2 {[%clk 0:03:01]}  O-O {[%clk 0:02:58]} 6. Be3 {[%clk 0:03:01]}  Nc6 {[%clk 0:02:56]} 7. d5 {[%clk 0:03:01]}  Ne5 {[%clk 0:02:57]} 8. h3 {[%clk 0:02:59]}  e6 {[%clk 0:02:55]} 9. f4 {[%clk 0:02:50]}  Ned7 {[%clk 0:02:55]} 10. dxe6 {[%clk 0:02:50]}  fxe6 {[%clk 0:02:56]} 11. g4 {[%clk 0:02:40]}  Nc5 {[%clk 0:02:31]} 12. Qc2 {[%clk 0:02:21]}  b6 {[%clk 0:02:25]} 13. Bf3 {[%clk 0:02:18]}  Bb7 {[%clk 0:02:25]} 14. Nge2 {[%clk 0:02:17]}  a6 {[%clk 0:02:10]} 15. O-O-O {[%clk 0:02:09]}  Qe8 {[%clk 0:02:10]} 16. Ng3 {[%clk 0:02:00]}  b5 {[%clk 0:02:04]} 17. Qf2 {[%clk 0:01:59]}  b4 {[%clk 0:02:02]} 18. Bxc5 {[%clk 0:01:46]}  bxc3 {[%clk 0:02:02]} 19. Bd4 {[%clk 0:01:46]}  cxb2+ {[%clk 0:01:49]} 20. Kb1 {[%clk 0:01:46]}  Nd7 {[%clk 0:01:42]} 21. Bxg7 {[%clk 0:01:35]}  Kxg7 {[%clk 0:01:42]} 22. f5 {[%clk 0:01:25]}  Ne5 {[%clk 0:01:42]} 23. Be2 {[%clk 0:01:21]}  a5 {[%clk 0:00:55]} 24. Rhg1 {[%clk 0:01:09]}  Ba6 {[%clk 0:00:55]} 25. Qd4 {[%clk 0:01:09]}  Qc6 {[%clk 0:00:50]} 26. Rd2 {[%clk 0:00:59]}  Kg8 {[%clk 0:00:45]} 27. Rc2 {[%clk 0:00:56]}  a4 {[%clk 0:00:42]} 28. Rc3 {[%clk 0:00:49]}  a3 {[%clk 0:00:39]} 29. fxe6 {[%clk 0:00:39]}  Bc8 {[%clk 0:00:23]} 30. Qd5 {[%clk 0:00:35]}  Kh8 {[%clk 0:00:20]} 31. e7 {[%clk 0:00:32]}  Re8 {[%clk 0:00:17]} 32. Rf1 {[%clk 0:00:23]}  Qxd5 {[%clk 0:00:18]} 33. cxd5 {[%clk 0:00:20]}  Rxe7 {[%clk 0:00:18]} 34. Rf8+ {[%clk 0:00:17]}  Kg7 {[%clk 0:00:19]} 35. Rd8 {[%clk 0:00:17]}  Nf7 {[%clk 0:00:19]} 36. Rxc8 {[%clk 0:00:14]}  Rxc8 {[%clk 0:00:20]} 37. Rxa3 {[%clk 0:00:15]}  Ng5 {[%clk 0:00:20]} 38. Bd3 {[%clk 0:00:15]}  Nxh3 {[%clk 0:00:19]} 39. Kxb2 {[%clk 0:00:14]}  Nf2 {[%clk 0:00:20]} 40. Bc2 {[%clk 0:00:14]}  Nxg4 {[%clk 0:00:20]} 41. Kc3 {[%clk 0:00:13]}  h5 {[%clk 0:00:20]} 42. Kd4 {[%clk 0:00:12]}  h4 {[%clk 0:00:20]} 43. Nf1 {[%clk 0:00:13]}  Ne5 {[%clk 0:00:20]} 44. Rh3 {[%clk 0:00:12]}  g5 {[%clk 0:00:20]} 45. Ne3 {[%clk 0:00:12]}  Kf6 {[%clk 0:00:21]} 46. Nf5 {[%clk 0:00:11]}  Rh7 {[%clk 0:00:21]} 47. Rh1 {[%clk 0:00:11]}  g4 {[%clk 0:00:19]} 48. Nxh4 {[%clk 0:00:11]}  Rxh4 {[%clk 0:00:18]} 49. Rxh4 {[%clk 0:00:11]}  Nf3+ {[%clk 0:00:19]} 50. Ke3 {[%clk 0:00:12]}  Nxh4 {[%clk 0:00:20]} 51. Kf4 {[%clk 0:00:13]}  Ng6+ {[%clk 0:00:20]} 52. Kxg4 {[%clk 0:00:13]}  Ke5 {[%clk 0:00:21]} 53. Kf3 {[%clk 0:00:13]}  Ne7 {[%clk 0:00:22]} 54. Ke3 {[%clk 0:00:14]}  Ra8 {[%clk 0:00:22]} 55. Bb3 {[%clk 0:00:14]}  Nc8 {[%clk 0:00:22]} 56. Kd3 {[%clk 0:00:14]}  Nb6 {[%clk 0:00:23]} 57. Ke3 {[%clk 0:00:15]}  Nd7 {[%clk 0:00:24]} 58. Bc4 {[%clk 0:00:14]}  Nc5 {[%clk 0:00:25]} 59. Kd2 {[%clk 0:00:14]}  Nxe4+ {[%clk 0:00:24]} 60. Kd3 {[%clk 0:00:14]}  Nc5+ {[%clk 0:00:25]} 61. Kc3 {[%clk 0:00:14]}  Rb8 {[%clk 0:00:24]} 62. a4 {[%clk 0:00:12]}  Nxa4+ {[%clk 0:00:25]} 0-1


[Site "https://www.chess.com"]

[Event "Titled Tuesday Blitz June 13 Early 2023"]
[White "Jaracz, Pawel"]
[Black "Lazavik, Denis"]
[WhiteFideId "1102222"]
[BlackFideId "13515110"]
[WhiteElo "2454"]
[BlackElo "2560"]
[Result "0-1"]
[Round "5"]
[TimeControl "180+2"]
[Date "2023.06.13"]
[WhiteClock "0:00:13"]
[BlackClock "0:00:07"]
[Board "23"]

1. e4 {[%clk 0:03:00]}  c5 {[%clk 0:03:00]} 2. Nf3 {[%clk 0:03:01]}  e6 {[%clk 0:03:00]} 3. d4 {[%clk 0:03:01]}  cxd4 {[%clk 0:03:01]} 4. Nxd4 {[%clk 0:03:01]}  Nc6 {[%clk 0:03:02]} 5. Nc3 {[%clk 0:03:01]}  Qc7 {[%clk 0:03:02]} 6. Be2 {[%clk 0:03:01]}  Nf6 {[%clk 0:03:01]} 7. O-O {[%clk 0:03:01]}  a6 {[%clk 0:03:02]} 8. Be3 {[%clk 0:03:00]}  Be7 {[%clk 0:03:02]} 9. f4 {[%clk 0:03:00]}  d6 {[%clk 0:03:03]} 10. Qe1 {[%clk 0:03:00]}  O-O {[%clk 0:03:03]} 11. Qg3 {[%clk 0:03:00]}  Nxd4 {[%clk 0:03:02]} 12. Bxd4 {[%clk 0:03:00]}  b5 {[%clk 0:03:03]} 13. a3 {[%clk 0:03:00]}  Bb7 {[%clk 0:03:02]} 14. Rae1 {[%clk 0:02:59]}  Rad8 {[%clk 0:03:01]} 15. Kh1 {[%clk 0:02:57]}  Ne8 {[%clk 0:02:58]} 16. Qe3 {[%clk 0:02:50]}  Rd7 {[%clk 0:02:45]} 17. Bd3 {[%clk 0:02:44]}  Qd8 {[%clk 0:02:34]} 18. Rf3 {[%clk 0:02:38]}  Bf6 {[%clk 0:02:28]} 19. Bb6 {[%clk 0:02:32]}  Qb8 {[%clk 0:02:25]} 20. e5 {[%clk 0:02:04]}  Bxf3 {[%clk 0:01:11]} 21. exf6 {[%clk 0:02:03]}  Bh5 {[%clk 0:00:46]} 22. Bd4 {[%clk 0:01:52]}  Nxf6 {[%clk 0:00:38]} 23. Bxf6 {[%clk 0:01:49]}  gxf6 {[%clk 0:00:38]} 24. Qh3 {[%clk 0:01:47]}  Bg6 {[%clk 0:00:36]} 25. f5 {[%clk 0:01:34]}  exf5 {[%clk 0:00:36]} 26. Nd5 {[%clk 0:01:33]}  Kg7 {[%clk 0:00:33]} 27. Bxf5 {[%clk 0:01:30]}  Ra7 {[%clk 0:00:16]} 28. Qh4 {[%clk 0:01:24]}  Qd8 {[%clk 0:00:16]} 29. Rf1 {[%clk 0:01:10]}  Re8 {[%clk 0:00:14]} 30. Qd4 {[%clk 0:01:02]}  Rb7 {[%clk 0:00:07]} 31. h4 {[%clk 0:00:53]}  Re5 {[%clk 0:00:07]} 32. Bxg6 {[%clk 0:00:34]}  fxg6 {[%clk 0:00:07]} 33. Nxf6 {[%clk 0:00:13]}  Rf7 {[%clk 0:00:07]} 0-1


[Site "https://www.chess.com"]